Cogmind - Beta 9.3 @@@ ROGUE MODE // 2019.12.31 @ 09:57:17 // Winter2019/RPGLIKE Player: Dhoby_Ghaut Result: Destroyed by MAIN.C with Improved Heavy Machine Gun Performance ------------- Evolutions (9) 4500 Regions Visited (16) 3200 Robots Destroyed (180) 900 Value Destroyed (7679) 7679 Prototype IDs (30) 600 Alien Tech Used (6) 1200 Bonus (16758) 16758 TOTAL SCORE: 34837 Bonus ------- High Alert Combat Kills 821 Follower Combat Kills 1083 Met R17 at Cetus 500 Used Core Reset Matrix 3000 Scanned by Researcher 500 Met Sigix 2000 Destroyed MAIN.C Guards 500 Met MAIN.C 5000 Destroyed MAIN.C Shell 5000 Friendly Fire -1646 Cogmind --------- Core Integrity 0/1900 Matter 340/350 Energy 797/810 System Corruption 21% Temperature Cool (3) Movement Flying (29) Location -1/Command Parts ------- > --- POWER (4) -------- Light Antimatter Reactor Quantum Reactor Light Quantum Reactor Reinforced Quantum Reactor > --- PROPULSION (6) --- Cooled Field Propulsion Drive Field Propulsion Array Q-thruster Q-thruster > --- UTILITY (10) ----- Advanced Signal Interpreter Advanced Melee Analysis Suite Advanced Melee Analysis Suite Advanced Actuator Array Advanced Transmission Jammer Advanced Reaction Control System Advanced Cloaking Device Thermal Barrier Point Defense System > --- WEAPON (4) ------- Lance Force Lance Force Lance Force Lance > --- INVENTORY (4) ---- Protomatter-89 Protomatter-61 Sigix Containment Pod Peak State ------------ > --- POWER ------------ Light Antimatter Reactor Quantum Reactor Light Quantum Reactor Reinforced Quantum Reactor > --- PROPULSION ------- Xenon Bombardment Thruster Cooled Field Propulsion Drive Field Propulsion Array Q-thruster Q-thruster > --- UTILITY ---------- Advanced Signal Interpreter Advanced Melee Analysis Suite Advanced Melee Analysis Suite Advanced Actuator Array Advanced Transmission Jammer Advanced Reaction Control System Advanced Phase Shifter Advanced Cloaking Device Point Defense System Drone Bay > --- WEAPON ----------- Lance Force Lance Force Lance Force Lance > --- INVENTORY -------- Protomatter Protomatter Sigix Containment Pod [Rating: 170] Favorites ----------- Power Enhanced Nuclear Core Engine Light Deuterium Engine Power Core Enhanced Nuclear Core Reactor Light Particle Reactor Propulsion Field Propulsion Drive Wheel Compact Wheel Hover Unit Improved Hover Unit Flight Unit Field Propulsion Drive Utility Advanced Melee Analysis Suite Device Microactuators Processor Advanced Melee Analysis Suite Hackware Improved System Shield Protection Centrium Medium Armor Plating Artifact Matter Drive Weapon Greatsword Ballistic Gun Assault Rifle Launcher Improved Grenade Launcher Impact Weapon Heavy Flail Slashing Weapon Greatsword Piercing Weapon Force Lance Build | -11 -10 -10 -10 -9 -8 -7 -6 -5 -5 -5 -4 -3 -3 -2 -1 -1 ------- Run | Scr Mat Min Exi Min Mat Fac Fac Fac Ext Cet Fac Res Qua Res Acc Com Slots Evolved 20 | 1 . 1 . . 6 1 2 1 . 1 2 1 . 2 . 2 Power 3 | . . . . . 1 . . . . . 1 . . . . 1 Propulsion 5 | . . . . . 2 1 . . . . . . . 1 . 1 Utility 9 | . . 1 . . 2 . 1 1 . 1 1 1 . 1 . . Weapon 3 | 1 . . . . 1 . 1 . . . . . . . . . Parts Attached 168 | 4 6 1 . . 22 16 16 6 . 1 12 13 12 28 15 16 Power 20 | 1 1 . . . 3 4 2 . . . 1 1 . 2 3 2 Engine 4 | 1 . . . . 2 1 . . . . . . . . . . Core 7 | . 1 . . . 1 3 2 . . . . . . . . . Reactor 9 | . . . . . . . . . . . 1 1 . 2 3 2 Propulsion 28 | 1 1 . . . 3 4 2 5 . . 2 6 . 1 1 2 Treads . | . . . . . . . . . . . . . . . . . Leg . | . . . . . . . . . . . . . . . . . Wheel 2 | 1 1 . . . . . . . . . . . . . . . Hover 10 | . . . . . 3 4 2 1 . . . . . . . . Flight 16 | . . . . . . . . 4 . . 2 6 . 1 1 2 Utility 76 | . 1 1 . . 5 3 6 1 . 1 6 2 7 21 11 11 Device 57 | . . 1 . . 2 3 3 1 . . 5 . 6 16 10 10 Storage . | . . . . . . . . . . . . . . . . . Processor 15 | . 1 . . . 3 . 3 . . . . 1 . 5 1 1 Hackware 1 | . . . . . . . . . . . . 1 . . . . Protection 2 | . . . . . . . . . . 1 1 . . . . . Artifact 1 | . . . . . . . . . . . . . 1 . . . Weapon 44 | 2 3 . . . 11 5 6 . . . 3 4 5 4 . 1 Energy Gun . | . . . . . . . . . . . . . . . . . Energy Cannon . | . . . . . . . . . . . . . . . . . Ballistic Gun 7 | 2 2 . . . 3 . . . . . . . . . . . Ballistic Cannon . | . . . . . . . . . . . . . . . . . Launcher 16 | . 1 . . . 3 2 3 . . . 2 3 2 . . . Special Weapon . | . . . . . . . . . . . . . . . . . Impact Weapon 5 | . . . . . 3 1 . . . . . . . 1 . . Slashing Weapon 10 | . . . . . 2 2 3 . . . 1 . . 2 . . Piercing Weapon 6 | . . . . . . . . . . . . 1 3 1 . 1 Special Melee Weapon . | . . . . . . . . . . . . . . . . . Unidentified Prototypes 18 | . . . . . . 2 1 1 . 1 1 2 6 2 1 1 Parts Lost 3 | . . . . . . . . . . . . 1 . . . 2 Power . | . . . . . . . . . . . . . . . . . Propulsion 1 | . . . . . . . . . . . . . . . . 1 Utility 2 | . . . . . . . . . . . . 1 . . . 1 Weapon . | . . . . . . . . . . . . . . . . . Highest Loss Streak 1 | . . . . . . . . . . . . 1 . . . 1 Average Slot Usage (%) 90 | . 95 100 100 100 97 88 81 84 87 87 87 82 82 91 94 94 Engine 2 | . 16 . . . 9 4 . . . . . . . . . . Core 8 | . 3 17 16 16 1 9 13 12 12 11 10 10 10 5 . . Reactor 3 | . . . . . . . . . . . 2 5 5 7 12 15 Wheel 3 | . 20 17 16 16 . . . . . . . . . . . . Hover 7 | . . . . . 30 23 22 3 . . . . . . . . Flight 10 | . . . . . . . . 20 25 23 21 14 15 16 18 19 Device 18 | . . 10 16 16 11 23 17 16 18 17 24 25 24 29 30 28 Processor 14 | . 15 17 16 16 14 7 14 18 18 17 15 15 15 13 13 12 Ballistic Gun 7 | . 39 35 33 33 10 . . . . . . . . . . . Impact Weapon 1 | . . . . . 7 10 . . . . . . . . . . Slashing Weapon 7 | . . . . . 12 8 12 12 12 11 10 9 4 2 4 . Piercing Weapon 3 | . . . . . . . . . . . . . 7 12 13 15 Naked Turns . | . . . . . . . . . . . . . . . . . Heaviest Build 115 | 6 8 13 13 13 25 29 33 33 33 40 60 63 74 84 90 115 Greatest Support 119 | 16 16 16 16 16 30 41 66 54 36 46 63 71 76 85 92 119 Greatest Overweight (x) 4 | . . . . . 4 . . 3 . . . 1 1 . . 1 Average Overweight (x) . | . . . . . . . . . . . . . . . . . Largest Inventory Capacity 4 | . 1 1 1 1 1 2 2 2 2 2 2 2 3 4 4 4 Average Capacity 2 | . . 1 1 1 1 1 2 2 2 2 2 2 2 3 4 4 Most Carried 4 | . 1 1 1 1 1 2 2 2 2 2 2 2 3 4 4 4 Average Carried 1 | . . 1 1 1 . 1 1 2 2 2 1 1 1 3 3 4 Final Capacity 4 | . 1 1 1 1 1 2 2 2 2 2 2 2 3 4 4 4 Final Carried 4 | . 1 1 1 1 1 2 2 2 2 2 2 1 3 4 4 4 Class Distribution -------------------- 34% | Mutant 19% | Hacker-Scout 18% | Generator-Ninja 10% | Generator-Scout 9% | Gladiator 4% | Scout Dominant Class ---------------- Mutant | -10/Materials Mutant | -10/Mines Mutant | -10/Exiles Mutant | -9/Mines Mutant | -8/Materials Mutant | -7/Factory Gladiator | -6/Factory Scout | -5/Factory Hacker-Scout | -5/Extension Hacker-Scout | -5/Cetus Hacker-Scout | -4/Factory Hacker-Scout | -3/Research Generator-Scout | -3/Quarantine Generator-Ninja | -2/Research Generator-Ninja | -1/Access Generator-Ninja | -1/Command Resources | -11 -10 -10 -10 -9 -8 -7 -6 -5 -5 -5 -4 -3 -3 -2 -1 -1 ----------- Run | Scr Mat Min Exi Min Mat Fac Fac Fac Ext Cet Fac Res Qua Res Acc Com Matter Collected 2532 | 240 284 42 . . 386 130 226 60 . 10 126 134 86 408 100 300 Remotely . | . . . . . . . . . . . . . . . . . Salvage Created 7765 | . 619 . . . 1535 232 872 260 956 385 419 423 160 259 100 1545 Parts 418 | . 47 . . . 75 8 71 12 28 20 20 50 14 20 15 38 Haulers Intercepted 12 | . 2 . . . 3 1 1 . 2 . 3 . . . . . Recyclers Shooed 1 | . . . . . . . . . 1 . . . . . . . Parts Field Recycled . | . . . . . . . . . . . . . . . . . Retrieved Matter . | . . . . . . . . . . . . . . . . . Parts Self-Destructed . | . . . . . . . . . . . . . . . . . Prevented . | . . . . . . . . . . . . . . . . . Kills | -11 -10 -10 -10 -9 -8 -7 -6 -5 -5 -5 -4 -3 -3 -2 -1 -1 ------- Run | Scr Mat Min Exi Min Mat Fac Fac Fac Ext Cet Fac Res Qua Res Acc Com Combat Hostiles Destroyed 130 | . 14 1 . . 30 3 24 2 10 6 9 12 2 5 4 8 Melee 95 | . . . . . 24 2 19 2 10 6 4 11 . 5 4 8 Guns 16 | . 10 1 . . 5 . . . . . . . . . . . AOE 18 | . 4 . . . 1 . 5 . . . 5 1 2 . . . Classes Destroyed 16 | . 7 1 . . 2 . 3 1 . . . 1 1 . . . Worker 8 | . 1 . . . 5 . . . . . . . 1 . . 1 Builder 3 | . 1 . . . 1 . 1 . . . . . . . . . Hauler 12 | . 2 . . . 3 1 1 . 2 . 3 . . . . . Recycler 3 | . . . . . . . . 1 1 . . . . . . 1 Operator 4 | . 1 . . . . . 1 . 1 . . . 1 . . . Watcher 13 | . 2 . . . 4 . 2 1 1 . . . . . . 3 Swarmer 32 | . 6 . . . 4 . 10 . 2 . 5 3 . . . 2 Saboteur 1 | . . . . . . . . . . . . 1 . . . . Grunt 39 | . 8 . . . 15 1 6 . 4 . . . 2 1 . 2 Brawler 2 | . . . . . 1 . 1 . . . . . . . . . Duelist 1 | . . . . . . . 1 . . . . . . . . . Researcher 1 | . . . . . . . . . . . . . 1 . . . Sentry 30 | . . . . . 10 2 3 1 4 . 2 3 . 3 1 1 Hunter 7 | . . . . . . . 2 1 . . . . . 1 3 . Programmer 10 | . . . . . . . 1 . . 1 2 5 . . . 1 Cetus Guard 5 | . . . . . . . . . . 5 . . . . . . Combat Programmer 1 | . . . . . . . . . . . . . . . . 1 Assembled 7 | . . 1 . . . . . . . . . . . . . 6 Best Kill Streak 9 | . 9 1 . . 9 1 6 2 3 5 5 3 3 1 3 3 Combat Bots Only 9 | . 6 1 . . 9 1 6 1 2 3 5 3 2 1 3 2 Max Kills in Single Turn 6 | . 4 1 . . 2 1 3 1 1 1 3 1 3 1 1 6 Gunslinging . | . . . . . . . . . . . . . . . . . Exploded 3 | . 2 . . . 1 . 3 . . . 3 1 2 . . . Melee 1 | . . . . . 1 1 1 1 1 1 1 1 . 1 1 1 Uniques/NPCs Destroyed 1 | . . . . . . . . . . . . . . . . 1 MAIN.C Shell (-1/Command) Combat | -11 -10 -10 -10 -9 -8 -7 -6 -5 -5 -5 -4 -3 -3 -2 -1 -1 -------- Run | Scr Mat Min Exi Min Mat Fac Fac Fac Ext Cet Fac Res Qua Res Acc Com Damage Taken 9525 | . 412 99 . . 1401 85 627 225 551 962 360 870 287 174 351 3121 Core 7691 | . 342 79 . . 1145 71 492 184 448 767 287 720 227 139 275 2515 Absorbed by Shields 1246 | . . 27 . . 360 45 42 . 116 138 96 126 296 . . . Redirected to Core 6321 | . 215 62 . . 846 44 451 144 353 702 250 531 197 121 275 2130 Core Remaining (%) 72 | 100 . . . 57 63 79 98 . . 45 74 . 37 100 . . Volleys Fired 78 | . 39 8 . . 23 . 2 . . . 2 1 3 . . . Largest 3 | . 2 2 . . 3 . 1 . . . 1 1 1 . . . Hottest 66 | . 50 40 . . 66 . 36 . . . 36 49 49 . . . Shots Fired 151 | . 77 16 . . 50 . 2 . . . 2 1 3 . . . Gun 139 | . 74 16 . . 49 . . . . . . . . . . . Cannon . | . . . . . . . . . . . . . . . . . Launcher 12 | . 3 . . . 1 . 2 . . . 2 1 3 . . . Special . | . . . . . . . . . . . . . . . . . Kinetic 139 | . 74 16 . . 49 . . . . . . . . . . . Thermal . | . . . . . . . . . . . . . . . . . Explosive 12 | . 3 . . . 1 . 2 . . . 2 1 3 . . . Electromagnetic . | . . . . . . . . . . . . . . . . . Robot Hit Streak 14 | . 14 4 . . 13 . 2 . . . 3 1 1 . . . Robot Miss Streak 4 | . 4 3 . . 2 . . . . . 1 . 1 . . . Penetration Max . | . . . . . . . . . . . . . . . . . Secondary Targets . | . . . . . . . . . . . . . . . . . Shots Hit Robots 512 | . 51 8 . . 109 9 48 12 49 26 32 35 4 20 18 91 Core Hits 264 | . 33 2 . . 52 4 30 5 15 12 14 18 12 9 8 50 Critical Hits 22 | . . . . . 4 . 3 1 . 2 . 1 . 1 2 8 Critical Kills 6 | . . . . . 1 . 2 1 . . . 1 . . . 1 Critical Parts Destroyed 10 | . . . . . 2 . 1 . . 2 . . . . 2 3 Melee Attacks 771 | . . . . . 107 10 64 35 68 27 67 100 35 75 60 123 Impact 47 | . . . . . 43 4 . . . . . . . . . . Slashing 457 | . . . . . 64 6 64 35 68 27 67 92 9 12 12 1 Piercing 267 | . . . . . . . . . . . . 8 26 63 48 122 Sneak Attacks 26 | . . . . . 4 2 3 1 4 . 4 . 1 . . 7 Combat Hostiles 2 | . . . . . . . . . . . . . . . . 2 Follow-up Attacks 110 | . . . . . 17 2 7 3 4 5 5 8 . 8 10 41 Damage Inflicted 29634 | . 985 69 . . 3364 501 3410 897 3590 1658 2847 2352 1170 1135 885 6771 Guns 1151 | . 553 69 . . 529 . . . . . . . . . . . Cannons . | . . . . . . . . . . . . . . . . . Explosions 3623 | . 432 . . . 314 . 317 . . . 451 196 867 . . 1046 Melee 24860 | . . . . . 2521 501 3093 897 3590 1658 2396 2156 303 1135 885 5725 Ramming . | . . . . . . . . . . . . . . . . . Kinetic 1151 | . 553 69 . . 529 . . . . . . . . . . . Thermal 230 | . . . . . 230 . . . . . . . . . . . Explosive 3393 | . 432 . . . 84 . 317 . . . 451 196 867 . . 1046 Electromagnetic . | . . . . . . . . . . . . . . . . . Impact 1192 | . . . . . 955 237 . . . . . . . . . . Slashing 15976 | . . . . . 1566 264 3093 897 3590 1658 2396 2156 . 213 143 . Piercing 7692 | . . . . . . . . . . . . . 303 922 742 5725 Highest Corruption 21 | . . . . . 1 . . . . 1 1 4 4 . 1 21 Average Corruption 2 | . . . . . 1 . . . . 1 1 2 3 . 1 4 Corruption Purged . | . . . . . . . . . . . . . . . . . Effects 36 | . . . . . 1 . . . . 1 1 12 2 . . 19 Message Errors 8 | . . . . . 1 . . . . 1 . 3 . . . 3 Matter Fused 4 | . . . . . . . . . . . . 4 . . . . Heat Flow Errors 3 | . . . . . . . . . . . . 2 1 . . . Energy Discharges 3 | . . . . . . . . . . . 1 2 . . . . Parts Rejected 1 | . . . . . . . . . . . . . . . . 1 Data Loss (minor) 2 | . . . . . . . . . . . . . 1 . . 1 Data Loss (major) 1 | . . . . . . . . . . . . . . . . 1 Misdirections 1 | . . . . . . . . . . . . . . . . 1 Targeting Errors 13 | . . . . . . . . . . . . 1 . . . 12 Overload Shots . | . . . . . . . . . . . . . . . . . Overflow Damage 2195 | . . . . . 215 89 306 79 576 13 62 91 186 132 2 444 Projectiles . | . . . . . . . . . . . . . . . . . Explosions 206 | . . . . . 49 . 7 . . . . . 68 . . 82 Melee 1989 | . . . . . 166 89 299 79 576 13 62 91 118 132 2 362 Knockbacks 3 | . . . . . 2 1 . . . . . . . . . . Impact 3 | . . . . . 2 1 . . . . . . . . . . Kinetic . | . . . . . . . . . . . . . . . . . Secondary . | . . . . . . . . . . . . . . . . . Self-Inflicted Damage 166 | . . . . . . . . . . . . 18 10 . . 138 Shots 3 | . . . . . . . . . . . . 1 1 . . 1 Rammed . | . . . . . . . . . . . . . . . . . Targets Rammed . | . . . . . . . . . . . . . . . . . Kicked . | . . . . . . . . . . . . . . . . . Crushed . | . . . . . . . . . . . . . . . . . Highest Temperature 313 | . 20 8 . . 60 20 18 266 6 7 3 261 68 241 21 313 Average Temperature 76 | . 8 3 . . 16 7 9 162 1 2 2 100 43 61 6 71 Received Heat Transfer 1727 | . 135 . . . 680 24 43 18 103 145 42 49 38 18 9 423 Effects 2 | . . . . . . . . 1 . . . . . . . 1 Shutdowns 1 | . . . . . . . . . . . . . . . . 1 Energy Bleed 1 | . . . . . . . . 1 . . . . . . . . Siege Activations . | . . . . . . . . . . . . . . . . . Robots Corrupted . | . . . . . . . . . . . . . . . . . Combat Hostiles . | . . . . . . . . . . . . . . . . . Parts Fried 7 | . . . . . 6 1 . . . . . . . . . . Impact Corruptions 10 | . . . . . 8 2 . . . . . . . . . . Robots Melted . | . . . . . . . . . . . . . . . . . Combat Hostiles . | . . . . . . . . . . . . . . . . . Parts Melted 1 | . . . . . . . . . . . . 1 . . . . Heat Transferred 150 | . . . . . 150 . . . . . . . . . . . Parts Sabotaged . | . . . . . . . . . . . . . . . . . Parts Stolen . | . . . . . . . . . . . . . . . . . Parts Stripped . | . . . . . . . . . . . . . . . . . Power Chain Reactions . | . . . . . . . . . . . . . . . . . Missiles Intercepted 1 | . . . . . . . . . . . . . . . . 1 Alert | -11 -10 -10 -10 -9 -8 -7 -6 -5 -5 -5 -4 -3 -3 -2 -1 -1 ------- Run | Scr Mat Min Exi Min Mat Fac Fac Fac Ext Cet Fac Res Qua Res Acc Com Peak Influence 1206 | . 290 112 . . 711 380 634 454 317 370 498 608 371 491 470 1206 Average Influence 326 | . 156 94 . . 395 324 403 342 132 281 326 420 176 356 329 696 Maximum Alert Level 4 | . 1 . . . 3 1 2 2 1 1 2 2 1 2 2 4 Low Security (%) 25 | 100 55 100 . 100 25 . 3 . 67 9 . . 80 . . . Level 1 45 | . 44 . . . 16 100 56 67 32 90 79 41 19 71 76 29 Level 2 24 | . . . . . 51 . 40 32 . . 20 58 . 28 23 21 Level 3 3 | . . . . . 6 . . . . . . . . . . 42 Level 4 . | . . . . . . . . . . . . . . . . 6 Level 5 . | . . . . . . . . . . . . . . . . . High Security . | . . . . . . . . . . . . . . . . . Max Security . | . . . . . . . . . . . . . . . . . Squads Dispatched 36 | . 2 . . . 2 2 5 3 3 . 4 4 3 2 3 3 Investigation 15 | . 2 . . . . . 1 1 1 . 2 2 . 2 3 1 Extermination 5 | . . . . . . . 2 . . . 1 1 . . . 1 Reinforcement 12 | . . . . . 1 2 1 1 2 . 1 . 3 . . 1 Assault 3 | . . . . . . . 1 1 . . . 1 . . . . Garrison 1 | . . . . . 1 . . . . . . . . . . . Intercept . | . . . . . . . . . . . . . . . . . Construction Impeded . | . . . . . . . . . . . . . . . . . Haulers Reinforced 2 | . . . . . . 1 . . . . 1 . . . . . Stealth | -11 -10 -10 -10 -9 -8 -7 -6 -5 -5 -5 -4 -3 -3 -2 -1 -1 --------- Run | Scr Mat Min Exi Min Mat Fac Fac Fac Ext Cet Fac Res Qua Res Acc Com Distress Signals 15 | . 1 . . . 3 . 2 1 5 2 . 1 . . . . Communications Jammed 20 | . . . . . . . . . . . . . . 19 1 . Distress Signals 19 | . . . . . . . . . . . . . . 19 . . Times Spotted 254 | . 23 3 . . 43 5 35 7 26 12 11 25 27 16 5 16 Peak Tracking Total 14 | . 6 2 . . 8 1 7 5 6 5 5 7 14 6 3 4 Tactical Retreats 16 | . 1 . . . 2 . 3 1 3 . . 2 3 . . 1 Traps | -11 -10 -10 -10 -9 -8 -7 -6 -5 -5 -5 -4 -3 -3 -2 -1 -1 ------- Run | Scr Mat Min Exi Min Mat Fac Fac Fac Ext Cet Fac Res Qua Res Acc Com Traps Triggered 11 | . 1 . . . . 1 1 . 6 . . 1 . . 1 . Indirectly . | . . . . . . . . . . . . . . . . . Trap Hack Attempts . | . . . . . . . . . . . . . . . . . Triggered . | . . . . . . . . . . . . . . . . . Disarmed 4 | . . . . . . . . . 4 . . . . . . . Reprogrammed . | . . . . . . . . . . . . . . . . . Reused . | . . . . . . . . . . . . . . . . . Traps Extracted . | . . . . . . . . . . . . . . . . . Installed . | . . . . . . . . . . . . . . . . . Triggered 1 | . . . . . 1 . . . . . . . . . . . Machines | -11 -10 -10 -10 -9 -8 -7 -6 -5 -5 -5 -4 -3 -3 -2 -1 -1 ---------- Run | Scr Mat Min Exi Min Mat Fac Fac Fac Ext Cet Fac Res Qua Res Acc Com Machines Disabled 18 | . . . . . 1 . 1 . 2 1 . . 10 . . 3 Max in Single Turn 4 | . . . . . 1 . 1 . . . . . 4 . . 1 Garrison Access 4 | . . . . . 1 2 . . . . . . . 1 . . Phase Generator 1 | . . . . . . . . . . . . . . . . 1 Machines Sabotaged . | . . . . . . . . . . . . . . . . . Garrisons Compromised . | . . . . . . . . . . . . . . . . . Overloaded Fab Kills . | . . . . . . . . . . . . . . . . . Fab Network Shutdowns . | . . . . . . . . . . . . . . . . . Hacking | -11 -10 -10 -10 -9 -8 -7 -6 -5 -5 -5 -4 -3 -3 -2 -1 -1 --------- Run | Scr Mat Min Exi Min Mat Fac Fac Fac Ext Cet Fac Res Qua Res Acc Com Machines Accessed 99 | . 6 1 1 . 9 7 7 4 12 2 4 11 7 7 11 10 Terminals 83 | . 6 . . . 8 3 5 4 12 2 3 10 7 4 9 10 Fabricators 5 | . . . . . . 1 1 . . . . 1 . 1 1 . Repair Stations 1 | . . . . . . 1 . . . . . . . . . . Recycling Units . | . . . . . . . . . . . . . . . . . Scanalyzers 1 | . . . . . . . 1 . . . . . . . . . Garrison Access 7 | . . . . . 1 2 . . . . 1 . . 2 1 . Total Hacks 314 | . 16 1 23 . 26 16 28 16 47 7 10 45 17 17 25 20 Successful 169 | . 6 1 23 . 12 10 17 5 34 5 2 24 11 6 6 7 Failed 145 | . 10 . . . 14 6 11 11 13 2 8 21 6 11 19 13 Catastrophic 21 | . 1 . . . 1 2 . 1 . . 1 2 . 2 7 4 Database Lockouts . | . . . . . . . . . . . . . . . . . Manual 136 | . 11 . . . 15 5 9 10 29 1 3 25 10 4 5 9 Terminals 251 | . 16 . . . 25 7 19 16 47 7 8 38 17 10 21 20 Fabricators 15 | . . . . . . 3 2 . . . . 7 . 1 2 . Repair Stations 4 | . . . . . . 4 . . . . . . . . . . Recycling Units . | . . . . . . . . . . . . . . . . . Scanalyzers 7 | . . . . . . . 7 . . . . . . . . . Garrison Access 13 | . . . . . 1 2 . . . . 2 . . 6 2 . Terminal Hacks 120 | . 5 1 23 . 7 2 8 5 25 5 2 16 8 2 5 6 Record 36 | . . . 23 . . . 1 . . 4 . 1 4 1 2 . Part Schematic 2 | . . . . . . . 1 . . . . 1 . . . . Robot Analysis 4 | . . . . . 1 . . . . . . 2 . 1 . . Prototype ID Bank 9 | . 4 . . . 1 . . . 1 . . 2 1 . . . Open Door 14 | . . 1 . . . . . . 7 1 . . 1 . 3 1 Level Access Points 2 | . . . . . . 1 . 1 . . . . . . . . Branch Access Points 6 | . . . . . 1 . 1 1 1 . . 1 1 . . . Emergency Access Points 1 | . . . . . . . . . . . . . . . . 1 Fabricator Index 1 | . . . . . . . . . . . . 1 . . . . Alert Level 3 | . . . . . . . . . . . 1 . 1 . . 1 Unreport Threat 9 | . . . . . . 1 2 3 . . . 3 . . . . Locate Traps 14 | . 1 . . . 1 . 1 . 7 . 1 2 . . . 1 Disarm Traps 1 | . . . . . . . . . 1 . . . . . . . Recall Investigation 3 | . . . . . . . . . 2 . . 1 . . . . Recall Reinforcements 3 | . . . . . . . . . 2 . . 1 . . . . Hauler Manifests 2 | . . . . . 2 . . . . . . . . . . . Registered Prototypes 1 | . . . . . 1 . . . . . . . . . . . Zone Layout 7 | . . . . . . . 2 . 4 . . 1 . . . . Disengage Seal 2 | . . . . . . . . . . . . . . . . 2 Fabricator Hacks 3 | . . . . . . . . . . . . 2 . 1 . . Load Schematic 1 | . . . . . . . . . . . . 1 . . . . Build 2 | . . . . . . . . . . . . 1 . 1 . . Repair Station Hacks 4 | . . . . . . 4 . . . . . . . . . . Scan Component 2 | . . . . . . 2 . . . . . . . . . . Repair 2 | . . . . . . 2 . . . . . . . . . . Recycling Unit Hacks . | . . . . . . . . . . . . . . . . . Scanalyzer 7 | . . . . . . . 7 . . . . . . . . . Insert Component 3 | . . . . . . . 3 . . . . . . . . . Analyze 4 | . . . . . . . 4 . . . . . . . . . Garrison Access Hacks 4 | . . . . . 1 2 . . . . . . . 1 . . Seal Access 4 | . . . . . 1 2 . . . . . . . 1 . . Unauthorized Hacks 92 | . 5 . . . 8 6 9 3 18 . 3 16 6 6 4 8 Terminals 30 | . 1 . . . 4 1 2 . 9 . . 6 3 2 1 1 Track 6 | . 1 . . . 1 . . . 2 . . 1 . 1 . . Assimilate 4 | . . . . . 1 . . . . . . 2 . 1 . . Botnet 14 | . . . . . 2 1 2 . 3 . . 2 2 . 1 1 Detonate 1 | . . . . . . . . . 1 . . . . . . . Disrupt 5 | . . . . . . . . . 3 . . 1 1 . . . Fabricators 1 | . . . . . . 1 . . . . . . . . . . Report 1 | . . . . . . 1 . . . . . . . . . . Repair Stations . | . . . . . . . . . . . . . . . . . Recycling Units . | . . . . . . . . . . . . . . . . . Scanalyzers . | . . . . . . . . . . . . . . . . . Garrison Access . | . . . . . . . . . . . . . . . . . Data Cores Recovered 3 | . 1 . . . . . 1 . . . . . 1 . . . Used 2 | . 1 . . . . . . . . . . . 1 . . . Hacking Detections 81 | . 6 . . . 8 5 6 4 11 1 4 11 4 5 8 8 Full Trace Events 15 | . 1 . . . 2 . 1 1 1 . 2 1 . 2 3 1 Feedback Events 2 | . . . . . 1 . . . . . . . . . 1 . Corruption 2 | . . . . . 1 . . . . . . . . . 1 . Feedback Blocked . | . . . . . . . . . . . . . . . . . Robot Schematics Acquired . | . . . . . . . . . . . . . . . . . Robots Built . | . . . . . . . . . . . . . . . . . Matter . | . . . . . . . . . . . . . . . . . Time . | . . . . . . . . . . . . . . . . . Total Robot Build Rating . | . . . . . . . . . . . . . . . . . Part Schematics Acquired 5 | . . . . . . . 4 . . . . 1 . . . . Parts Built 1 | . . . . . . . . . . . . 1 . . . . Matter 512 | . . . . . . . . . . . . 234 . 278 . . Time 178 | . . . . . . . . . . . . 39 . 139 . . Total Part Build Rating 7 | . . . . . . . . . . . . 7 . . . . Parts Repaired 2 | . . . . . . 2 . . . . . . . . . . Time 64 | . . . . . . 64 . . . . . . . . . . Parts Recycled . | . . . . . . . . . . . . . . . . . Recycled Matter . | . . . . . . . . . . . . . . . . . Retrieved Matter . | . . . . . . . . . . . . . . . . . Retrieved Components . | . . . . . . . . . . . . . . . . . Parts Scanalyzed 3 | . . . . . . . 3 . . . . . . . . . Part Schematics Acquired 3 | . . . . . . . 3 . . . . . . . . . Parts Damaged . | . . . . . . . . . . . . . . . . . Bothacking | -11 -10 -10 -10 -9 -8 -7 -6 -5 -5 -5 -4 -3 -3 -2 -1 -1 ------------ Run | Scr Mat Min Exi Min Mat Fac Fac Fac Ext Cet Fac Res Qua Res Acc Com Used RIF Installer . | . . . . . . . . . . . . . . . . . Robots Hacked . | . . . . . . . . . . . . . . . . . Non-combat . | . . . . . . . . . . . . . . . . . Combat . | . . . . . . . . . . . . . . . . . Robot Hacks Applied . | . . . . . . . . . . . . . . . . . Relay Couplers Released . | . . . . . . . . . . . . . . . . . Robots Rewired 7 | . . . . . . . . . 7 . . . . . . . Allies Hacked . | . . . . . . . . . . . . . . . . . Hacks Repelled . | . . . . . . . . . . . . . . . . . Allies | -11 -10 -10 -10 -9 -8 -7 -6 -5 -5 -5 -4 -3 -3 -2 -1 -1 -------- Run | Scr Mat Min Exi Min Mat Fac Fac Fac Ext Cet Fac Res Qua Res Acc Com Total Allies 97 | . . 3 . . 1 . . . 16 . . 2 . 1 . 74 Largest Group 45 | . . 3 3 3 3 . . . 9 3 1 1 . 1 . 45 Highest-Rated Group 1757 | . . 40 40 40 40 . . . 343 218 156 44 . 26 . 1757 Highest-Rated Ally 243 | . . 16 16 16 16 . . . 156 156 156 44 . 26 . 243 Total Orders 15 | . . 2 . . 4 . . . 2 . . 1 3 1 . 2 STAY 3 | . . 1 . . 1 . . . 1 . . . . . . . GOTO 3 | . . . . . 1 . . . . . . 1 . 1 . . FOLLOW 4 | . . 1 . . 2 . . . 1 . . . . . . . EXPLORE 4 | . . . . . . . . . . . . . 3 . . 1 RETURN 1 | . . . . . . . . . . . . . . . . 1 Ally Attacks 208 | . . 10 . . 4 . . . 56 38 . . . . . 100 Total Damage 4762 | . . 68 . . 32 . . . 1300 702 . . . . . 2660 Kills 30 | . . 1 . . . . . . 8 3 . . . . . 18 Allies Corrupted . | . . . . . . . . . . . . . . . . . Allies Melted . | . . . . . . . . . . . . . . . . . Intel | -11 -10 -10 -10 -9 -8 -7 -6 -5 -5 -5 -4 -3 -3 -2 -1 -1 ------- Run | Scr Mat Min Exi Min Mat Fac Fac Fac Ext Cet Fac Res Qua Res Acc Com Robot Analysis Total 4 | . . . . . 1 . . . . . . 2 . 1 . . Derelict Logs Recovered 1 | . . 1 . . . . . . . . . . . . . . Drone Launches 5 | . . . . . . . . . . . . . 3 . . 2 Drone Recoveries . | . . . . . . . . . . . . . . . . . Exploration | -11 -10 -10 -10 -9 -8 -7 -6 -5 -5 -5 -4 -3 -3 -2 -1 -1 ------------- Run | Scr Mat Min Exi Min Mat Fac Fac Fac Ext Cet Fac Res Qua Res Acc Com Turns Passed 8258 | 44 730 473 153 109 1025 395 767 393 620 173 518 931 343 618 368 598 Spaces Moved 10354 | 39 501 421 129 103 1125 503 1171 594 536 259 790 1250 599 798 623 913 Core 2 | 1 . . . . 1 . . . . . . . . . . . Treads . | . . . . . . . . . . . . . . . . . Legs . | . . . . . . . . . . . . . . . . . Wheels 1198 | 38 501 421 129 103 6 . . . . . . . . . . . Hover 2913 | . . . . . 1118 503 1171 121 . . . . . . . . Flight 6241 | . . . . . . . . 473 536 259 790 1250 599 798 623 913 Fastest Speed 27 | 50 100 100 100 100 52 45 43 31 31 31 31 32 32 29 29 27 Average Speed 43 | 98 100 100 100 100 52 50 44 34 31 31 31 32 32 30 29 28 Slowest Speed 280 | 100 100 100 100 100 250 52 45 280 31 31 34 120 107 32 29 105 Overloaded Moves . | . . . . . . . . . . . . . . . . . Propulsion Burnouts . | . . . . . . . . . . . . . . . . . Robots Hopped 32 | . . . . . . . . 9 5 . . 1 8 4 . 5 Cave-ins Triggered . | . . . . . . . . . . . . . . . . . Teleports 3 | . . . . . . . . . . . . . 3 . . . Exploration Rate (%) 45 | 3 98 77 55 32 89 15 29 15 63 83 24 38 65 29 22 37 Regions Visited 16 Branch Regions 7 Pre-discovered Areas 3 | . . 2 1 . . . . . . . . . . . . . Known Exits Taken 11 | . . . . . 1 1 1 1 1 1 1 1 1 1 1 . Unknown Exits Taken 5 | 1 1 1 1 1 . . . . . . . . . . . . Scrap Searched 2 | . . 1 . 1 . . . . . . . . . . . . Spaces Dug 191 | . . . . . 3 . 11 16 12 . 27 47 11 32 23 9 Terrain Destroyed 370 | . 13 . . . 22 . 21 16 12 . 38 65 47 32 23 81 Melee 191 | . . . . . 3 . 11 16 12 . 27 47 11 32 23 9 Projectile . | . . . . . . . . . . . . . . . . . AOE 179 | . 13 . . . 19 . 10 . . . 11 18 36 . . 72 Actions | -11 -10 -10 -10 -9 -8 -7 -6 -5 -5 -5 -4 -3 -3 -2 -1 -1 --------- Run | Scr Mat Min Exi Min Mat Fac Fac Fac Ext Cet Fac Res Qua Res Acc Com Total 12991 | 42 661 458 153 109 1370 630 1336 728 898 318 984 1654 701 1096 751 1102 Wait 1164 | . 104 27 25 7 41 71 41 94 102 22 87 235 44 172 28 64 Move 10280 | 38 500 420 128 102 1124 502 1170 576 526 258 789 1246 582 793 622 904 Hop 23 | . . . . . . . . 8 3 . . 1 8 . . 3 Pick Up 18 | . 2 . . . 1 . 3 . . . 2 3 4 . 2 1 Fast Attach 124 | 4 2 1 . . 17 11 7 6 . 1 5 7 12 23 12 16 Attach 34 | . . . . . 2 4 5 . . . 5 5 6 5 2 . Detach 52 | . . . . . 5 5 4 . . . 6 6 8 13 4 1 Swap 18 | . 4 . . . 3 1 4 . . . 2 2 1 . 1 . Drop 101 | . 4 . . . 10 9 10 4 . . 8 10 8 12 13 13 Fire 78 | . 39 8 . . 23 . 2 . . . 2 1 3 . . . Melee 540 | . . . . . 80 7 53 28 58 21 53 77 23 44 33 63 Ram . | . . . . . . . . . . . . . . . . . Kick . | . . . . . . . . . . . . . . . . . Crush . | . . . . . . . . . . . . . . . . . Escape Stasis 176 | . . . . . . 13 . . 128 . . 15 1 . 18 1 Rewire 56 | . . . . . . . . . 56 . . . . . . . Trap . | . . . . . . . . . . . . . . . . . Miscellaneous 327 | . 6 2 . . 64 7 37 12 25 16 25 46 1 34 16 36 Route ------- -11/Scrapyard -10/Materials (discovered 5 exits: [*Mat x3] / *Min x2) -10/Mines (discovered 2 exits: [*Mat] / *Exi) -10/Exiles (discovered 2 exits: [*Min x2]) -9/Mines -8/Materials (discovered 3 exits: *Fac x3) -7/Factory (discovered 5 exits: *Fac x4 / [*Low]) -6/Factory (discovered 3 exits: *Fac / *Low x2) -5/Factory (discovered 8 exits: Fac x4 / Upp x2 / *Ext x2) -5/Extension (discovered 2 exits: *Fac / *Cet) -5/Cetus (discovered 2 exits: *Fac / [*Arc]) -4/Factory -3/Research (discovered 4 exits: *Res / Arm / *Qua x2) -3/Quarantine -2/Research (discovered 3 exits: *Acc x2 / [Tes]) -1/Access -1/Command History --------- Turn | Location | Event 1 | -11/Scrapyard | Upgraded with Weapon slot (x1) 14 | -11/Scrapyard | Discovered new exit (range 18) 45 | -11/Scrapyard | Entered Materials 233 | -10/Materials | Discovered new exit (range 17) 316 | -10/Materials | Build established: Mutant 452 | -10/Materials | Discovered new exit (range 14) 508 | -10/Materials | Discovered new exit (range 7) 602 | -10/Materials | Discovered new exit (range 17) 635 | -10/Materials | Reached level 2 672 | -10/Materials | Discovered new exit (range 20) 775 | -10/Materials | Entered Mines 782 | -10/Mines | Assembled infested the area 782 | -10/Mines | Received a Rocket Launcher from a helpful Derelict 808 | -10/Mines | Learned location of Storage (-9) 874 | -10/Mines | Assisted by bots powering up and referring to "LRC-V3" 906 | -10/Mines | Learned location of Zion (-6) 933 | -10/Mines | Met a Derelict who couldn't figure out how to use a Trap Extractor 942 | -10/Mines | Upgraded with Utility slot (x1) 1162 | -10/Mines | Discovered new exit (range 17) 1234 | -10/Mines | Deemed a non-threat by the Exiles lab entrance 1235 | -10/Mines | Discovered new exit (range 5) 1248 | -10/Mines | Entered Exiles 1248 | -10/Exiles | Accompanied by 3 allies 1261 | -10/Exiles | Discovered new exit (range 17) 1275 | -10/Exiles | Met 8R-AWN 1289 | -10/Exiles | Met EX-HEX 1316 | -10/Exiles | Met EX-BIN 1325 | -10/Exiles | Met EX-DEC 1361 | -10/Exiles | Discovered new exit (range 16) 1401 | -10/Exiles | Entered Mines 1401 | -9/Mines | Accompanied by 3 allies 1403 | -9/Mines | Reached level 3 1485 | -9/Mines | Discovered new exit (range 5) 1510 | -9/Mines | Entered Materials 1510 | -8/Materials | Accompanied by 3 allies 1512 | -8/Materials | Reached level 4 1516 | -8/Materials | Upgraded with Propulsion slot (x2) 1539 | -8/Materials | Upgraded with Weapon slot (x1) 1847 | -8/Materials | Reached level 5 1849 | -8/Materials | Upgraded with Utility slot (x1) 1852 | -8/Materials | Core integrity fell below 50% 1920 | -8/Materials | Destroyed 9 combat bots 2014 | -8/Materials | Discovered new exit (range 17) 2113 | -8/Materials | Identified exit to Factory 2153 | -8/Materials | Reached level 6 2153 | -8/Materials | Garrison activated, responded to threat 2207 | -8/Materials | Discovered exit to Factory (range 11) 2403 | -8/Materials | Upgraded with Power slot (x1) 2403 | -8/Materials | Upgraded with Utility slot (x1) 2525 | -8/Materials | Discovered exit to Factory (range 16) 2535 | -8/Materials | Entered Factory 2537 | -7/Factory | Reached level 7 2537 | -7/Factory | Upgraded with Propulsion slot (x1) 2592 | -7/Factory | Repaired Imp. Hover Unit 2626 | -7/Factory | Repaired Imp. Hover Unit 2672 | -7/Factory | Reached level 8 2742 | -7/Factory | Identified exit to Factory 2783 | -7/Factory | Discovered new exit (range 3) 2930 | -7/Factory | Entered another Factory area 2932 | -6/Factory | Reached level 9 2944 | -6/Factory | Upgraded with Utility slot (x1) 3028 | -6/Factory | Reached level 10 3034 | -6/Factory | Upgraded with Weapon slot (x1) 3246 | -6/Factory | Build established: Gladiator 3255 | -6/Factory | Discovered new exit (range 18) 3388 | -6/Factory | Identified exit to Factory 3402 | -6/Factory | Discovered new exit (range 17) 3411 | -6/Factory | Identified exit to Lower Caves 3583 | -6/Factory | Reached level 11 3630 | -6/Factory | First assault squad dispatched 3697 | -6/Factory | Entered another Factory area 3699 | -5/Factory | Reached level 12 3730 | -5/Factory | Upgraded with Utility slot (x1) 3945 | -5/Factory | Identified exit to Factory 3997 | -5/Factory | First assault squad dispatched 4003 | -5/Factory | Identified exit to Upper Caves 4003 | -5/Factory | Identified exit to Extension 4011 | -5/Factory | Build established: Scout 4090 | -5/Factory | Entered Extension 4092 | -5/Extension | Reached level 13 4259 | -5/Extension | Rescued a captive Derelict 4365 | -5/Extension | Rescued a captive Derelict 4366 | -5/Extension | Rescued a captive Derelict 4379 | -5/Extension | Reached level 14 4433 | -5/Extension | Rescued a captive Derelict 4439 | -5/Extension | Rescued A7 4453 | -5/Extension | Identified exit to Cetus 4477 | -5/Extension | Rescued a captive Derelict 4545 | -5/Extension | Rescued a captive Derelict 4546 | -5/Extension | Rescued a captive Derelict 4573 | -5/Extension | Reached level 15 4655 | -5/Extension | Rescued a captive Derelict 4656 | -5/Extension | Rescued a captive Derelict 4676 | -5/Extension | Discovered exit to Factory (range 10) 4710 | -5/Extension | Entered Cetus 4710 | -5/Cetus | Accompanied by 3 allies 4715 | -5/Cetus | Acquired a Cetus Manufacturing Module code from A7 4715 | -5/Cetus | Spotted Cetus Guard 4715 | -5/Cetus | Spotted Cetus Guard 4715 | -5/Cetus | Spotted Cetus Guard 4715 | -5/Cetus | Spotted Cetus Guard 4719 | -5/Cetus | Destroyed Cetus Guard 4727 | -5/Cetus | Destroyed Cetus Guard 4731 | -5/Cetus | Reached level 16 4731 | -5/Cetus | Allies destroyed Cetus Guard 4733 | -5/Cetus | Build established: Hacker-Scout 4739 | -5/Cetus | Upgraded with Utility slot (x1) 4752 | -5/Cetus | Started Cetus Manufacturing Module 4772 | -5/Cetus | Cetus Manufacturing Module disabled 4791 | -5/Cetus | Discovered new exit (range 17) 4806 | -5/Cetus | Spotted Cetus Guard 4806 | -5/Cetus | Spotted Cetus Guard 4806 | -5/Cetus | Spotted Cetus Guard 4806 | -5/Cetus | Spotted Cetus Guard 4807 | -5/Cetus | Discovered exit to Factory (range 17) 4820 | -5/Cetus | Core integrity fell below 50% 4827 | -5/Cetus | Destroyed Cetus Guard 4836 | -5/Cetus | Destroyed Cetus Guard 4841 | -5/Cetus | Allies destroyed Cetus Guard 4847 | -5/Cetus | Destroyed Cetus Guard 4850 | -5/Cetus | Met Revision 17 4883 | -5/Cetus | Entered Factory 4883 | -4/Factory | Accompanied by 1 ally 4884 | -4/Factory | Core integrity fell below 50% 4885 | -4/Factory | Reached level 17 4939 | -4/Factory | Upgraded with Utility slot (x1) 5095 | -4/Factory | Reached level 18 5126 | -4/Factory | Upgraded with Power slot (x1) 5287 | -4/Factory | Core integrity fell below 20% 5377 | -4/Factory | Discovered new exit (range 19) 5401 | -4/Factory | Identified exit to Research 5401 | -4/Factory | Entered Research 5403 | -3/Research | Reached level 19 5434 | -3/Research | Identified exit to Armory 5434 | -3/Research | Identified exit to Quarantine 5471 | -3/Research | Build established: Generator-Scout 5486 | -3/Research | Reached level 20 5487 | -3/Research | Upgraded with Utility slot (x1) 5686 | -3/Research | Discovered new exit (range 17) 5738 | -3/Research | Spotted B-86 Titan 5739 | -3/Research | Identified exit to Research 5998 | -3/Research | P-80 Master assimilated allied Director 8a 6008 | -3/Research | Reached level 21 6074 | -3/Research | Build established: Hacker-Scout 6151 | -3/Research | First assault squad dispatched 6244 | -3/Research | Fabricated Force Lance (x1) 6332 | -3/Research | Entered Quarantine 6334 | -3/Quarantine | Reached level 22 6370 | -3/Quarantine | Found Alien Artifact 6370 | -3/Quarantine | Identified Matter Drive 6415 | -3/Quarantine | Found Alien Artifact 6415 | -3/Quarantine | Identified Terrabomb 6415 | -3/Quarantine | Used Terrabomb 6457 | -3/Quarantine | Discovered exit to Research (range 13) 6471 | -3/Quarantine | Found Alien Artifact 6471 | -3/Quarantine | Identified Subatomic Replicator 6477 | -3/Quarantine | Used Subatomic Replicator to replicate Force Lance 6489 | -3/Quarantine | Found Alien Artifact 6489 | -3/Quarantine | Identified Transdimensional Reconstructor 6489 | -3/Quarantine | Warped through subspace 6499 | -3/Quarantine | Scanned by Researcher 6515 | -3/Quarantine | Found Transdimensional Reconstructor 6516 | -3/Quarantine | Found Alien Artifact 6516 | -3/Quarantine | Identified Hpw. Transdimensional Reconstructor 6516 | -3/Quarantine | Warped through subspace 6581 | -3/Quarantine | Found Alien Artifact 6581 | -3/Quarantine | Identified Core Reset Matrix 6581 | -3/Quarantine | Reached level 23 6581 | -3/Quarantine | Used Core Reset Matrix 6585 | -3/Quarantine | Detected hypermatrix surge 6585 | -3/Quarantine | Sensed 7 artifacts in vicinity 6590 | -3/Quarantine | Warped through subspace 6597 | -3/Quarantine | Met incapacitated Sigix Warrior 6597 | -3/Quarantine | Lockdown squad dispatched 6597 | -3/Quarantine | Reached level 24 6604 | -3/Quarantine | Acquired the access code to the Sigix quarantine chamber 6605 | -3/Quarantine | Unlocked Sigix quarantine chamber 6628 | -3/Quarantine | Spotted Lightning 6628 | -3/Quarantine | Spotted Lightning 6628 | -3/Quarantine | Spotted Lightning 6630 | -3/Quarantine | Core integrity fell below 50% 6658 | -3/Quarantine | Discovered exit to Research (range 18) 6675 | -3/Quarantine | Entered Research 6676 | -2/Research | Core integrity fell below 50% 6677 | -2/Research | Reached level 25 6677 | -2/Research | Reached level 26 6696 | -2/Research | Discovered new exit (range 18) 6753 | -2/Research | Discovered new exit (range 17) 6762 | -2/Research | Upgraded with Utility slot (x1) 6762 | -2/Research | Found Prototype Processor 6762 | -2/Research | Identified Exp. Melee Analysis Suite 6815 | -2/Research | Identified exit to Access 6908 | -2/Research | Upgraded with Propulsion slot (x1) 6960 | -2/Research | Build established: Generator-Ninja 7109 | -2/Research | Spotted B-90 Cyclops 7268 | -2/Research | Discovered exit to Access (range 17) 7293 | -2/Research | Entered Access 7295 | -1/Access | Reached level 27 7295 | -1/Access | Reached level 28 7460 | -1/Access | Spotted B-99 Colossus 7659 | -1/Access | Discovered new exit (range 8) 7661 | -1/Access | Identified exit to Command 7661 | -1/Access | Entered Command 7663 | -1/Command | Reached level 29 7663 | -1/Command | Reached level 30 7705 | -1/Command | Disengaged cave seal 7802 | -1/Command | Disengaged cave seal 7802 | -1/Command | Assembled emerged from the dark tunnel 7835 | -1/Command | Reached level 31 7838 | -1/Command | Upgraded with Power slot (x1) 7838 | -1/Command | Upgraded with Propulsion slot (x1) 7863 | -1/Command | Phase Generator disabled 7894 | -1/Command | Reached level 32 8029 | -1/Command | Reached level 33 8076 | -1/Command | Spotted M Guard 8076 | -1/Command | Spotted M Guard 8076 | -1/Command | Spotted Combat Programmer 8078 | -1/Command | Spotted Combat Programmer 8111 | -1/Command | Core integrity fell below 50% 8114 | -1/Command | System corruption reached 10% 8116 | -1/Command | Emitted hypermatrix ping 8120 | -1/Command | Core integrity fell below 20% 8121 | -1/Command | Assembled emerged from beneath the floor 8126 | -1/Command | Allies destroyed Combat Programmer 8127 | -1/Command | Allies destroyed M Guard 8133 | -1/Command | Allies destroyed M Guard 8135 | -1/Command | Destroyed Combat Programmer 8135 | -1/Command | Destroyed all MAIN.C guards 8166 | -1/Command | Found Prototype Device 8166 | -1/Command | Identified Thermal Barrier 8187 | -1/Command | Met MAIN.C 8187 | -1/Command | Reached level 34 8188 | -1/Command | 0b10 Conduit disabled 8259 | -1/Command | Destroyed MAIN.C Shell 8259 | -1/Command | Destroyed by MAIN.C with Improved Heavy Machine Gun Last Messages --------------- 08237_ System corrupted: Force Lance targeting data glitched. 08237_ Force Lance follow-up attack on MAIN.C. 08237_ System corrupted: Force Lance targeting data glitched. 08237_ Force Lance follow-up attack on MAIN.C. 08241_ Dropped Adv. Terrain Scanner. 08241_ Force Lance follow-up attack on MAIN.C. 08241_ System corrupted: Force Lance targeting data glitched. 08245_ Lance follow-up attack on MAIN.C. 08248_ System corrupted: Force Lance targeting data glitched. 08248_ Force Lance follow-up attack on MAIN.C. 08248_ MAIN.C suffers critical hit. 08248_ Lance follow-up attack on MAIN.C. 08252_ Force Lance follow-up attack on MAIN.C. 08254_ System corrupted: Substantial component data lost. 08255_ Lance follow-up attack on MAIN.C. 08255_ Force Lance follow-up attack on MAIN.C. 08259_ MAIN.C destroyed. 08259_ MAIN.C's core emerges from the rubble. [Achievement: 30k Club] [Achievement: Overachiever] Map ----- +----------------------------------------------------+ | ?????????????????????????????????????#?????????#?? | | ??????????????????????????????????????????##????#? | | ?????????????????????????????##????????????#???#?? | | ?????????????????????????????????#????????#??????? | | ?????????????????????????????????##??#???????????? | | ?????????????????????????#?????????????#??#???#??? | | ???????????????????##??#########????#####??##??#?? | | ?????????????????#######?#########????#???#??#???? | | ???????????????##???###???########?#???#?#??#????? | | ?????????????##??#####?###############?###????#??? | | ????????????###########?#####?#?####?###?????#???? | | ??????????? #?#########?#?#####?##?#?###????###??# | | ?????????? ####?####?##?##?#?###########????##### | | ????????? ? ??######?##################?##?##?#### | | ????????? ? #?###""""""" """" ######?##### | | ???????? #####"" "" ############ | | ???????? ?? ?####""""" "" ############ | | ???????#######?##""""""""""" + | | ???????##########" " """ + | | ?????? # ? #####"" """""" + | | ?????? / ? #?###"" """""" ############ | | ?????? # ##??# """""" #######?#### | | ?????? # ??#?## ""pp #?########## | | ?????? ? ?##### " " ! ""#?########## | | ???????# #####"""""" [%!M "" """"##?######### | | ????? ? ? ?##??#"" @ = """"""""############ | | ???????# ?###?# """""""""""#?########## | | ?????? ########## " " " " ############ | | ?????? ##??##### " " " " ########?### | | ?????? """ " " " """" " ##?#####?### | | ?????? ? "?" " " " """" #####?###### | | ??????? ? """ " " " ##########?# | | ??????? ##?####?# " """"""" " ############ | | ???????#######??# """ " """"""""#########?## | | ????????? ##### """ " " " ############ | | ????????? ?##################################### | | ????????? ? ?########?########?##?#####?###??##### | | ?????????? #####?##??####?######??###########?### | | ??????????? #############?##?######?#####?#?###### | | ??????????? Y####?##????##?#?####??###?#?##?###### | | ????????????########?########?#########?????####?# | | ?????????????######?###??#####?####?##??##??###### | | ??????????????###?##???#####?#######??????????#### | | ?????????????????#?#######?######?????????????#### | | ???????????????????############????????????????#?? | | ???????????????????#?????#???#???????????????????# | | ????????????????????????##???????????????????????? | | ?????????????????????????????????????????????????? | | ?????????????????????????????????????????????????? | | ?????????????????????????????????????????????????? | +----------------------------------------------------+ Best States ------------- Heat Dissipation 67 Energy Generation 96 Energy Capacity 810 Matter Stores 350 Matter Capacity 350 Sight Range 20 Robot Scan Range 20 Terrain Scan Range 20 Terrain Scan Density 310 Jamming Range 16 Cloak Strength 4 Additional Mass Support 6 EM Shielding 3 Armor Coverage 225 Resistance: KI 25 Resistance: TH 50 Resistance: EX 10 Point Defense Rating 80 Melee Speed Boost 20 Phase Shifting 15 Evasion (%) 93 Melee Accuracy 16 Launcher Accuracy 40 Target Analysis 6 Core Analysis 10 Energy Filtering 50 Stasis Canceling 2 Offensive Hacking 15 Defensive Hacking 22 Item Schematics ----------------- None Robot Schematics ------------------ None Fabricated ------------ Force Lance | x1 | -3/Research Alien Tech Used ----------------- Matter Drive Terrabomb Subatomic Replicator Transdimensional Reconstructor High-powered Transdimensional Reconstructor Core Reset Matrix Achievements -------------- 30k Club Alien Roots Beloved Collateral Damage Corridor Of Doom False Reunion Meet Your Maker No Explosion For You Overachiever Project G-00 Revising The Future We Are Legion Challenges ------------ None RPGLIKE | -11 -10 -10 -10 -9 -8 -7 -6 -5 -5 -5 -4 -3 -3 -2 -1 -1 --------- Run | Scr Mat Min Exi Min Mat Fac Fac Fac Ext Cet Fac Res Qua Res Acc Com Levels Raised 33 | . 1 . . 1 3 2 3 1 3 1 2 3 3 2 2 6 XP Earned 53946 | 3000 1850 500 200 500 5822 2075 4880 1873 3942 1957 2771 4243 5260 2953 2757 9363 XP Spent 52305 | 1600 1350 500 . . 6900 3070 2500 3525 1100 2600 5060 3100 1350 6300 1530 11820 Upgrades 110 | 5 4 1 . . 13 10 2 13 2 9 9 2 2 5 3 30 Power Slot 3 | . . . . . 1 . . . . . 1 . . . . 1 Propulsion Slot 5 | . . . . . 2 1 . . . . . . . 1 . 1 Utility Slot 9 | . . 1 . . 2 . 1 1 . 1 1 1 . 1 . . Weapon Slot 3 | 1 . . . . 1 . 1 . . . . . . . . . Core Integrity 26 | . . . . . . . . . . 6 . . . . . 20 Heat Dissipation 7 | . . . . . . 2 . 2 . . . . . . 1 2 Energy Generation 3 | . . . . . 1 . . . . . 1 . . 1 . . Energy Storage 1 | . . . . . . . . . . . . . . 1 . . Matter Storage 1 | . 1 . . . . . . . . . . . . . . . Mass Support 11 | . . . . . . . . . . 2 3 . 1 . 1 4 Inventory Capacity 4 | . 1 . . . . 1 . . . . . . 1 1 . . Sight Range 4 | 2 . . . . . . . . . . . 1 . . 1 . Sensor Range 10 | . . . . . . . . 10 . . . . . . . . Terrain Scan Density 3 | . . . . . . . . . . . 3 . . . . . Ranged Accuracy 2 | . 2 . . . . . . . . . . . . . . . Melee Accuracy 2 | . . . . . 2 . . . . . . . . . . . Hack Attack % 3 | . . . . . 2 . . . 1 . . . . . . . Hack Defense % 2 | . . . . . 1 . . . 1 . . . . . . . KI Resistance % 2 | . . . . . . 2 . . . . . . . . . . TH Resistance % 4 | . . . . . . 2 . . . . . . . . . 2 EX Resistance % 2 | . . . . . . 2 . . . . . . . . . . KI Damage % 3 | 2 . . . . 1 . . . . . . . . . . . Protomatter Created 3065 | . 51 15 . . 606 55 499 89 141 149 182 413 51 271 269 274 Integrity Restored 6903 | . 123 45 . . 1335 165 719 259 526 346 546 1027 . 749 350 713 Core 5925 | . 123 45 . . 1179 165 605 196 403 324 546 752 . 704 275 608 Parts 978 | . . . . . 156 . 114 63 123 22 . 275 . 45 75 105 Protomatter Decayed 1486 | . . 43 . . 151 . 253 . 546 86 . 66 . . . 341 Game ------ Seed ShieldTractorVibroblade Manual? 0 Play Time 03:28:39 Cumulative 55.4 hours Start 2019.12.29 @ 14:54:34 End 2019.12.31 @ 09:57:17 Sessions 3 Manual Loads 0 Difficulty Rogue Special Mode Winter2019/RPGLIKE Game No. 42 Rogue 42 Adventurer 0 Explorer 0 Win Type - Total 7 Types 7/0/0/0/0/0/0 Lore% 65 Gallery% 64 Achievement% 50 Wizard Run 0 Options --------- ASCII 0 Keyboard 0 Movement Vi Keybinds 0 Fullscreen 2 Font 18/SmallcapsGlow Map View 76x50 Tactical HUD 1 Map Filters NONE Filters NONE Steam 0 RUN: c4f66c7a-3b9a-4af9-8e0d-b835d16124d9